bitfinex/quotes_ETHUSD_20260305
["timestamp","ask_amount","ask_price","bid_price","bid_amount"]
[1772693931790,0.46805739,2128.1,2127.8,0.001]
[1772693933706,0.46805739,2127.9,2127.8,0.001]
[1772693934102,0.46805739,2127.9,2127.4,0.48884209]
[1772693934709,0.46805739,2127.8,2127.4,0.001]
[1772693935281,0.46805739,2127.8,2127.4,0.48884209]
[1772693936109,1.64299615,2127.8,2127.4,1.66398008]
[1772693936283,1.64299615,2127.8,2127.4,0.48884209]
[1772693937313,1.17481403,2128.0,2127.4,1.17614174]
[1772693937610,1.17481403,2128.0,2127.5,0.48784209]
[1772693938115,1.64287142,2128.0,2127.5,0.48784209]
[1772693938815,0.46805739,2128.2,2127.6,0.48784209]
[1772693940709,1.17459639,2128.4,2127.8,0.48784209]
[1772693941215,1.17459639,2128.4,2127.6,0.48784209]
[1772693941216,0.46805739,2128.3,2127.6,0.48784209]
[1772693941418,0.46805739,2128.3,2127.6,0.48884209]
[1772693941616,0.47005739,2128.0,2127.6,0.48884209]
[1772693942513,1.64490332,2128.0,2127.6,0.48884209]
[1772693942816,0.46805739,2127.9,2127.6,0.001]
[1772693943016,0.46805739,2127.9,2127.4,0.001]
[1772693944491,0.46805739,2127.7,2127.4,0.001]
[1772693946594,0.46805739,2127.9,2127.4,0.48884209]
[1772693947215,0.46805739,2127.9,2127.4,0.001]
[1772693948730,0.46805739,2127.7,2127.4,0.001]
[1772693949020,0.46805739,2127.7,2127.1,0.001]
[1772693950824,0.46805739,2127.5,2127.1,0.001]
[1772693951118,1.1750329,2127.6,2127.1,0.001]
[1772693951299,1.1750329,2127.6,2127.2,0.48784209]
[1772693952326,1.17502151,2127.7,2127.2,0.48784209]
[1772693953198,1.17502151,2127.7,2127.3,0.48784209]
[1772693953428,1.64301844,2127.8,2127.3,0.48784209]
[1772693953627,2.98789952,2127.9,2127.3,0.48784209]
[1772693953831,1.17681479,2128.0,2127.3,0.48784209]
[1772693954026,1.17681479,2128.0,2127.2,1.1752201]
[1772693954027,1.17681479,2128.0,2127.5,0.48784209]
[1772693954220,0.002,2127.7,2127.5,0.48784209]
[1772693956013,0.002,2127.9,2127.7,0.48784209]
[1772693956408,0.002,2128.2,2127.8,0.48784209]
[1772693958219,0.002,2128.2,2128.0,0.48784209]
[1772693959042,0.002,2128.5,2128.1,0.49349182]
[1772693959723,1.17653765,2128.5,2128.1,0.49349182]
[1772693960108,1.67119783,2128.5,2128.1,0.49349182]
[1772693960738,1.67119783,2128.5,2127.9,0.49349182]
[1772693964345,0.49466018,2128.4,2127.9,0.49349182]
[1772693964507,0.49466018,2128.4,2127.5,0.49349182]
[1772693965113,0.49466018,2128.4,2127.4,0.001]
[1772693966456,0.49466018,2128.2,2128.1,0.001]
[1772693966745,0.49466018,2128.2,2127.9,0.001]
[1772693968271,0.48608412,2128.0,2127.9,0.001]
[1772693969858,1.66089615,2128.0,2127.9,0.001]
[1772693970591,1.17481203,2128.0,2127.9,0.001]
[1772693972177,4.69909263,2128.1,2127.9,0.001]
[1772693972542,0.002,2128.3,2127.9,0.001]
[1772693972746,1.1747342,2128.2,2127.9,0.45116962]
[1772693973268,1.1747342,2128.2,2127.6,1.17599338]
[1772693973269,0.48608412,2128.1,2127.6,0.001]
[1772693974241,1.66089615,2128.0,2127.6,0.001]
[1772693976665,0.48608412,2127.9,2127.6,0.001]
[1772693978369,0.48608412,2127.9,2127.8,0.001]
[1772693978672,2.98586724,2127.9,2127.4,0.001]
[1772693978877,0.48608412,2127.8,2127.5,0.001]
[1772693979975,2.98586724,2127.9,2127.5,0.45116962]
[1772693980158,3.47195136,2127.9,2127.5,0.45116962]
[1772693981484,3.47195136,2127.9,2127.5,0.001]
[1772693981485,0.48608412,2127.8,2127.5,0.001]
[1772693983177,2.98586724,2127.9,2127.5,0.45116962]
[1772693983577,1.17486724,2127.9,2127.5,0.45116962]
[1772693984148,0.5,2127.8,2127.4,0.001]
[1772693986755,1.17497767,2127.7,2127.4,0.001]
[1772693986956,1.17496001,2127.8,2127.4,0.001]
[1772693988483,0.002,2128.3,2127.4,3.54942938]
[1772693988851,0.002,2128.3,2127.5,1.17508813]
[1772693989287,0.002,2128.3,2127.5,3.39351751]
[1772693990970,0.002,2128.3,2127.7,0.001]
[1772693991296,0.002,2128.1,2127.7,0.001]
[1772693992685,0.002,2128.5,2127.7,2.21942938]
[1772693993588,0.002,2128.5,2127.8,1.17492245]
[1772693995302,0.008,2128.5,2127.9,1.329]
[1772693995658,0.008,2128.5,2128.0,1.17481203]
[1772693997726,0.008,2128.5,2127.7,0.001]
[1772693997727,0.5,2128.4,2127.7,0.001]
[1772693998003,0.5,2128.4,2127.7,1.17597221]
[1772693998395,1.1765398,2128.5,2127.7,1.17597221]
[1772693998691,1.17654109,2128.5,2127.7,1.17597221]
[1772693999477,0.002,2128.5,2127.7,1.17597221]
[1772694000280,0.502,2128.5,2127.7,1.17597221]
[1772694001396,0.002,2128.5,2127.7,1.17597221]
[1772694001713,0.502,2128.5,2127.7,1.17597221]
[1772694001883,0.502,2128.5,2127.8,1.33]
[1772694002212,0.502,2128.5,2127.7,2.50597221]
[1772694002505,0.002,2128.5,2127.7,2.50597221]
[1772694003284,0.002,2128.6,2127.7,2.50597221]
[1772694003491,0.002,2128.3,2127.7,2.50597221]
[1772694003694,0.002,2128.3,2127.7,4.72200165]
[1772694003898,0.002,2128.3,2127.7,2.50597221]
[1772694004425,0.002,2128.3,2127.7,4.72200165]
[1772694004627,0.002,2128.3,2127.7,2.50597221]
[1772694004830,0.002,2128.5,2127.7,2.50597221]
[1772694005211,1e-08,2128.7,2127.8,0.48130524]
[1772694006141,0.002,2128.8,2128.0,0.48130524]
[1772694006632,0.002,2128.8,2128.2,0.48130524]
[1772694006794,0.002,2128.8,2128.1,2.51185004]
[1772694006795,0.002,2129.0,2128.4,0.48130524]
[1772694007900,0.46680952,2128.9,2128.4,1.65585131]
[1772694008218,0.46680952,2128.9,2128.4,1.17454607]
[1772694008705,0.46680952,2128.9,2128.4,1.65585131]
[1772694009198,0.46880952,2129.0,2128.4,1.65585131]
[1772694009400,0.46880952,2129.0,2128.4,0.48130524]
[1772694009599,0.46880952,2129.0,2128.0,0.48130524]
[1772694009824,0.46880952,2129.0,2127.9,1.17486724]
[1772694010406,0.46680952,2128.8,2127.9,1.17486724]
[1772694010738,0.46680952,2128.8,2127.8,2.98818328]
[1772694011099,0.46680952,2128.8,2127.8,1.65618328]
[1772694012446,0.46680952,2128.6,2127.8,1.65618328]
[1772694013732,0.46680952,2128.6,2127.8,1.17490889]
[1772694014103,0.46680952,2128.6,2127.9,0.48130524]
[1772694014611,1.64118005,2128.8,2128.1,0.48130524]
[1772694014925,0.002,2129.0,2128.3,0.48130524]
[1772694015127,0.46880952,2129.0,2128.3,0.48130524]
[1772694015326,0.46680952,2128.9,2128.1,1.81330524]
[1772694015666,0.002,2128.6,2128.1,0.48130524]
[1772694017139,0.002,2128.6,2128.1,1.656019]
[1772694017836,0.46880952,2128.6,2128.1,1.17471376]
[1772694018835,0.002,2128.6,2128.2,0.47563505]
[1772694019034,0.002,2128.8,2128.4,0.47563505]
[1772694019815,0.002,2128.8,2128.2,1.17465782]
[1772694019816,0.002,2128.8,2128.2,1.65029287]
[1772694020217,0.49490527,2128.8,2128.2,1.17465782]
[1772694020922,1.17638385,2128.8,2128.2,0.47563505]
[1772694021529,0.002,2128.8,2128.1,0.47563505]
[1772694022922,1.66734254,2128.7,2128.2,1.17470162]
[1772694023240,0.49290527,2128.7,2128.2,1.17470162]
[1772694023644,0.002,2128.8,2128.3,0.47563505]
[1772694025022,0.002,2128.8,2128.5,0.47563505]
[1772694026712,0.002,2128.8,2128.6,0.47563505]
[1772694027141,0.002,2128.8,2128.7,1.65006075]
[1772694028022,0.002,2129.0,2128.7,1.65006075]
[1772694032548,0.002,2129.0,2128.6,0.001]
[1772694032549,0.46529619,2129.0,2128.6,0.001]
[1772694033951,1.17431537,2128.9,2128.6,0.001]
[1772694034339,1.63761156,2128.9,2128.6,0.001]
[1772694035717,0.46329619,2128.8,2128.6,0.001]
[1772694035918,0.46329619,2128.6,2128.4,0.001]
[1772694038364,0.46329619,2128.5,2128.4,0.001]
[1772694038549,4.69735254,2128.9,2128.4,0.45454593]
[1772694038550,1.17431537,2128.9,2128.4,0.45454593]
[1772694038733,1.63959896,2129.0,2128.4,0.45454593]
[1772694038933,0.002,2129.0,2128.4,0.45454593]
[1772694040449,0.002,2129.0,2128.8,1.17437053]
[1772694040748,0.002,2128.9,2128.6,1.17544779]
[1772694041350,0.002,2128.9,2128.6,1.62899372]
[1772694041552,0.002,2129.0,2128.7,0.45354593]
[1772694042430,0.002,2129.0,2128.8,1.17437053]
[1772694043556,0.002,2129.0,2128.7,1.62793769]
[1772694045855,0.002,2129.0,2128.7,1.17439176]
[1772694046336,0.002,2129.0,2128.6,1.17545747]
[1772694046654,0.46529619,2129.0,2128.6,0.001]
[1772694047442,0.46329619,2128.8,2128.4,0.001]
[1772694048228,0.46329619,2128.8,2128.1,0.001]
[1772694048535,0.46329619,2128.8,2128.1,1.1757471]
[1772694048934,0.46329619,2128.8,2128.1,0.001]
[1772694050163,0.4872364,2128.6,2128.1,0.001]
[1772694052288,0.4872364,2128.4,2128.1,0.001]
[1772694053474,0.4872364,2128.4,2128.3,0.001]
[1772694053865,1.17453605,2128.5,2128.3,0.001]
[1772694054078,1.66175771,2128.6,2128.3,0.001]
[1772694055657,0.4872364,2128.5,2128.1,0.001]
[1772694055994,0.002,2128.7,2128.1,0.48850404]
[1772694056663,0.002,2128.7,2128.2,1.66220566]
[1772694057386,0.002,2128.7,2128.3,0.48750404]
[1772694058458,0.4892364,2128.7,2128.2,1.17470162]
[1772694058653,1.66366779,2128.7,2128.2,1.17470162]
[1772694058893,0.4872364,2128.7,2128.2,1.17470162]
[1772694059268,1.66160693,2128.8,2128.2,1.66220566]
[1772694059464,1.17437053,2128.8,2128.3,0.48750404]
[1772694060891,5.18660547,2128.9,2128.3,1.66214089]
[1772694061191,0.4872364,2128.8,2128.3,0.48750404]
[1772694061691,0.4872364,2128.8,2128.1,0.001]
[1772694061853,0.4872364,2128.8,2128.1,1.17575233]
[1772694062555,0.4872364,2128.8,2128.1,1.66325637]
[1772694062757,0.4872364,2128.8,2128.2,0.48750404]
[1772694063262,1.1744257,2128.7,2128.2,0.48750404]
[1772694063479,1.6616621,2128.7,2128.2,0.48750404]
[1772694063679,0.4872364,2128.6,2128.1,0.001]
[1772694065493,1.17453605,2128.5,2128.1,1.17575236]
[1772694065877,1.17453605,2128.5,2128.1,0.001]
[1772694066273,1.66177245,2128.5,2128.1,0.001]
[1772694066489,1.66176067,2128.6,2128.1,0.001]
[1772694066684,0.4872364,2128.5,2128.1,0.001]
[1772694066992,0.4872364,2128.5,2128.3,0.001]
[1772694067171,0.4892364,2128.5,2128.3,0.001]
[1772694067574,1.66381736,2128.5,2128.3,0.001]
[1772694068581,0.4872364,2128.4,2128.3,0.001]
[1772694069302,0.4872364,2128.4,2128.1,0.001]
[1772694069477,0.4872364,2128.2,2128.1,0.001]
[1772694071876,1.66193802,2128.2,2128.1,0.001]
[1772694072180,0.4872364,2128.1,2127.9,0.001]
[1772694072381,0.4872364,2128.1,2127.6,0.001]
[1772694072581,0.4872364,2128.1,2127.6,0.003]
[1772694072582,0.4372364,2128.1,2127.6,0.003]
[1772694072788,0.48635274,2127.9,2127.3,0.001]
[1772694072989,0.48635274,2127.8,2127.3,0.001]
[1772694073206,0.48635274,2127.6,2127.3,0.001]
[1772694074085,1.17508813,2127.5,2127.3,0.001]
[1772694075386,1.66144087,2127.5,2127.3,0.001]
[1772694076597,1.61144087,2127.5,2127.3,0.001]
[1772694077696,1.12508813,2127.5,2127.2,0.001]
[1772694077901,0.48635274,2127.4,2126.9,0.001]
[1772694078294,0.48635274,2127.2,2126.9,0.001]
[1772694078473,0.48635274,2127.2,2126.7,0.001]
[1772694078877,0.48635274,2127.2,2126.6,0.001]
[1772694078878,0.48535274,2127.0,2126.3,0.54413609]
[1772694079077,2.9611986,2127.3,2126.4,0.46095615]
[1772694079297,1.66053239,2127.4,2126.4,0.46095615]
[1772694079500,2.96112697,2127.5,2127.1,0.001]
[1772694079892,0.48535274,2127.6,2127.1,0.46195615]
[1772694080107,1.17501999,2127.7,2127.1,0.46195615]
[1772694080590,1.17501999,2127.7,2127.1,1.63726052]
[1772694081113,2.05401147,2128.5,2127.2,0.46095615]
[1772694081114,0.48535274,2128.4,2127.2,0.46095615]
[1772694081282,1.17459124,2128.4,2127.2,0.46095615]
[1772694081989,1.65994398,2128.4,2127.2,0.46095615]
[1772694082291,0.48535274,2128.3,2127.2,0.46095615]
[1772694082488,1.17470162,2128.2,2127.4,0.46095615]
[1772694082694,1.17468528,2128.3,2127.4,0.46095615]
[1772694082889,2.96256894,2128.5,2127.4,0.46095615]
[1772694084389,0.48535274,2128.4,2127.4,0.46095615]
[1772694084899,1.17464643,2128.3,2127.6,0.46095615]
[1772694085211,1.14814888,2128.3,2127.6,0.46095615]
[1772694085515,1.17657031,2128.5,2127.6,0.46095615]
[1772694085727,0.002,2128.5,2127.6,0.46095615]
[1772694086797,0.002,2128.5,2127.8,0.46095615]
[1772694087789,0.002,2128.7,2127.9,0.48563146]
[1772694088889,0.002,2128.7,2128.1,0.48563146]
[1772694089091,0.002,2128.7,2128.2,0.48563146]
[1772694091018,0.002,2128.7,2128.4,0.48563146]
[1772694092427,0.002,2128.7,2128.1,1.66034793]
[1772694092721,0.002,2128.5,2128.1,1.17471647]
[1772694092922,0.002,2128.5,2128.2,0.48563146]
[1772694093892,0.002,2128.5,2128.1,1.17472877]
[1772694094094,0.002,2128.5,2128.1,1.66036023]
[1772694094295,0.002,2128.5,2128.1,0.48563146]
[1772694094604,0.002,2128.5,2128.1,1.66038771]
[1772694094800,0.002,2128.5,2128.2,0.48563146]
[1772694095004,0.002,2128.7,2128.2,0.48563146]
[1772694095200,0.002,2128.7,2128.2,1.17465956]
[1772694095821,0.002,2128.7,2128.2,1.66029102]
[1772694096301,0.47938988,2128.7,2128.2,1.66029102]
[1772694096625,0.47938988,2128.7,2128.2,1.66032548]
[1772694097119,0.002,2128.7,2128.2,1.66032548]
[1772694097822,0.002,2128.7,2128.3,0.48563146]
[1772694098121,0.002,2128.9,2128.3,0.48563146]
[1772694098493,1.17631661,2128.9,2128.3,0.48563146]
[1772694099320,0.002,2128.9,2128.3,1.66026739]
[1772694099495,0.47938988,2128.9,2128.3,0.48563146]
[1772694099694,0.47938988,2128.9,2127.7,4.69971241]
[1772694099695,0.47938988,2128.9,2128.1,0.48563146]
[1772694100215,0.47938988,2128.9,2127.9,1.6604656]
[1772694100410,0.47938988,2128.9,2127.9,0.48563146]
[1772694100613,0.47738988,2128.8,2127.9,0.48563146]
[1772694101699,0.47738988,2128.6,2127.9,1.66049729]
[1772694101891,0.47738988,2128.6,2128.0,0.48563146]
[1772694102823,0.47738988,2128.6,2127.9,1.17486583]
[1772694103519,0.47738988,2128.6,2127.9,1.66049729]
[1772694103934,0.47738988,2128.4,2127.4,0.48563146]
[1772694104449,1.17453605,2128.5,2127.4,0.48563146]
[1772694104723,1.17451737,2128.6,2128.2,0.001]
[1772694104929,0.002,2128.4,2128.2,0.001]
[1772694105757,0.002,2128.4,2128.0,0.001]
[1772694106420,1.17659124,2128.4,2128.0,0.001]
[1772694106730,0.002,2128.4,2128.0,0.001]
[1772694108704,0.002,2128.4,2128.0,0.47190424]
[1772694110719,0.002,2128.4,2128.0,1.64666181]
[1772694111524,0.002,2128.4,2128.1,0.47090424]
[1772694112921,0.002,2128.4,2128.2,0.47090424]
[1772694114840,0.002,2128.4,2128.0,1.6466802]
[1772694115134,0.002,2128.4,2128.0,0.47190424]
[1772694115347,0.45421309,2128.4,2128.0,0.001]
[1772694116946,1.17464643,2128.3,2128.0,0.001]
[1772694117144,1.17464643,2128.3,2128.2,0.001]
[1772694117846,1.62685952,2128.3,2128.2,0.001]
[1772694118742,1.17464643,2128.3,2128.2,0.001]
[1772694119047,1.17663609,2128.4,2128.2,0.001]
[1772694119631,1.62884918,2128.4,2128.2,0.001]
[1772694119840,1.62884918,2128.4,2127.7,0.001]
[1772694119841,0.45221309,2128.2,2127.7,0.001]
[1772694120143,0.45221309,2128.2,2127.3,0.47090424]
[1772694120329,1.98647547,2128.0,2127.4,0.001]
[1772694120531,0.45221309,2127.9,2127.4,0.001]
[1772694121032,0.45221309,2127.9,2127.1,0.47190424]
[1772694121417,0.45221309,2127.9,2127.2,0.47090424]
[1772694121646,1.17492245,2127.8,2127.2,0.47090424]
[1772694123141,1.17492245,2127.8,2127.1,0.001]
[1772694123142,0.45221309,2127.6,2126.8,0.001]
[1772694123343,0.45221309,2127.6,2127.0,0.001]
[1772694123847,1.62730122,2127.5,2127.0,0.001]
[1772694124750,0.45221309,2127.4,2127.0,0.001]
[1772694124945,0.45221309,2127.3,2126.8,0.001]
[1772694125246,0.45221309,2127.3,2126.8,0.002]
[1772694125627,1.778,2127.4,2126.8,0.47290424]
[1772694126029,1.1751986,2127.3,2126.8,0.47290424]
[1772694127118,1.62741169,2127.3,2126.8,0.002]
[1772694128423,1.62741169,2127.3,2126.8,0.001]
[1772694129325,1.62741169,2127.3,2127.0,0.001]
[1772694129654,0.002,2127.2,2127.0,0.001]
[1772694131350,0.002,2127.2,2126.8,0.001]
[1772694131520,0.002,2127.2,2126.9,0.001]
[1772694131717,0.002,2127.2,2126.9,0.47090424]
[1772694131951,1.17701431,2127.7,2127.1,0.47090424]
[1772694132324,0.002,2127.7,2127.1,0.47090424]
[1772694132520,1.17481203,2128.0,2126.9,0.47090424]
[1772694133229,1.17481203,2128.0,2127.1,0.47090424]
[1772694133429,1.17477195,2128.1,2127.1,0.47090424]
[1772694133630,1.17464643,2128.3,2127.1,0.47090424]
[1772694133943,1.782,2128.4,2127.1,0.47090424]
[1772694133944,2.95662274,2128.4,2127.1,0.47090424]
[1772694134427,3.40883583,2128.4,2127.1,0.47090424]
[1772694135363,0.45221309,2128.3,2127.3,0.47090424]
[1772694136128,0.45221309,2128.1,2127.3,0.47090424]
[1772694137057,0.45221309,2128.1,2127.0,1.64622644]
[1772694137368,0.45221309,2128.1,2127.1,0.47090424]
[1772694137648,1.62702512,2128.0,2127.1,1.6462063]
[1772694137852,1.62702512,2128.0,2127.1,0.47090424]
[1772694138357,0.45221309,2127.9,2127.1,0.47090424]
[1772694139861,1.66427519,2127.8,2127.1,0.47090424]
[1772694140243,0.48935274,2127.7,2126.9,1.17537363]
[1772694140792,1.07186428,2127.8,2127.0,0.45351572]
[1772694141070,0.48935274,2128.0,2127.0,0.45351572]
[1772694141630,0.48935274,2128.0,2127.3,0.001]
[1772694141934,0.002,2127.7,2127.3,0.001]
[1772694143635,0.002,2127.7,2127.3,0.45451572]
[1772694143967,1.17697767,2127.7,2127.3,0.45451572]
[1772694145833,1.17697767,2127.7,2127.3,0.001]
[1772694149059,1.17697767,2127.7,2127.3,0.4668374]
[1772694149060,0.002,2127.7,2127.3,0.4668374]
[1772694149264,0.002,2127.9,2127.3,0.4668374]
[1772694150449,0.002,2127.9,2127.5,0.4658374]
[1772694151069,0.002,2128.4,2127.6,0.4658374]
[1772694152538,0.002,2128.4,2127.8,0.4658374]
[1772694154036,0.0254983,2128.3,2127.8,0.4658374]
[1772694154259,0.002,2127.9,2127.8,0.4658374]
[1772694155071,0.002,2127.9,2127.8,1.64075985]
[1772694155573,0.002,2128.2,2127.8,1.64075985]
[1772694155737,0.002,2128.2,2127.9,0.4658374]
[1772694156372,0.0274983,2128.2,2127.9,0.4658374]
[1772694157166,0.002,2128.4,2128.0,1.17481203]
[1772694157770,0.002,2128.4,2128.1,0.4658374]
[1772694158465,0.002,2128.4,2128.0,1.17481203]
[1772694158872,1.17659769,2128.4,2127.9,1.64068594]
[1772694159170,0.002,2128.4,2127.9,1.64068594]
[1772694160547,0.002,2128.4,2127.9,0.4658374]
[1772694160754,0.002,2128.4,2127.9,1.6406975]
[1772694160953,0.002,2128.4,2127.5,4.70032904]
[1772694160954,0.47760337,2128.4,2127.4,1.64098076]
[1772694161146,0.47760337,2128.4,2127.4,0.4658374]
[1772694161344,0.47560337,2128.2,2127.4,1.64096628]
[1772694162450,0.47560337,2128.2,2127.3,0.001]
[1772694163962,0.47560337,2128.0,2127.3,0.001]
[1772694165058,0.47560337,2127.9,2127.3,0.001]
[1772694165478,0.47560337,2128.0,2127.1,0.4658374]
[1772694165993,0.47560337,2127.8,2127.1,0.4658374]
[1772694166191,0.47560337,2127.8,2127.6,0.001]
[1772694166365,0.47560337,2127.8,2127.1,0.4658374]
[1772694166870,0.47560337,2127.8,2127.4,0.001]
[1772694168405,0.47560337,2127.6,2127.4,0.001]
[1772694169392,2.25060337,2127.6,2127.4,0.001]
[1772694170798,1.17508813,2127.5,2127.4,0.001]
[1772694172484,2.95008813,2127.5,2127.4,0.001]
[1772694172697,3.56854064,2127.5,2127.4,0.001]
[1772694176676,3.57054064,2127.5,2127.4,0.001]
[1772694178098,1.17685705,2128.0,2127.4,0.61884112]
[1772694178298,0.002,2128.0,2127.4,0.61884112]
[1772694178499,0.62045251,2128.4,2127.5,0.61784112]
[1772694178500,0.002,2128.4,2127.5,0.61784112]
[1772694178699,0.002,2128.5,2127.6,0.61784112]
[1772694178700,1.17654401,2128.5,2127.6,0.61784112]
[1772694178901,0.002,2128.5,2127.6,0.61784112]
[1772694179085,0.002,2128.5,2127.6,0.61884112]
[1772694179283,1.17653923,2128.5,2127.6,0.61884112]
[1772694179782,1.17853923,2128.5,2127.6,0.61884112]
[1772694180305,1.17853923,2128.5,2127.8,0.61784112]
[1772694180504,0.002,2127.9,2127.8,0.61784112]
[1772694181310,1.17853923,2128.5,2127.8,0.61784112]
[1772694181794,0.002,2128.7,2127.9,0.61784112]
[1772694182198,0.002,2128.7,2128.1,0.61784112]
[1772694182496,1.78,2128.7,2128.1,0.61784112]
[1772694182691,2.39845251,2128.7,2128.1,0.61784112]
[1772694183620,0.002,2128.7,2128.1,0.61784112]
[1772694184316,0.002,2128.7,2127.9,0.67677924]
[1772694184317,1.79487821,2128.7,2127.9,0.67677924]
[1772694186498,1.778,2128.6,2128.0,0.61784112]
[1772694186819,0.002,2128.9,2128.3,0.61784112]
[1772694187020,0.002,2129.3,2128.2,2.68819225]
[1772694187021,0.002,2129.3,2128.4,0.61784112]
[1772694187318,1.17388536,2129.7,2128.4,0.61784112]
[1772694187519,0.004,2129.6,2128.4,0.61784112]
[1772694187894,0.002,2129.5,2128.4,0.61784112]
[1772694188296,0.002,2129.4,2128.6,0.61784112]
[1772694188506,4.69529221,2129.8,2128.6,0.61784112]
[1772694188507,0.004,2129.7,2128.6,0.61784112]
[1772694189731,0.002,2129.6,2128.6,0.61784112]
[1772694190329,0.004,2129.6,2128.8,0.61784112]
[1772694190632,1.79199614,2130.4,2129.0,0.61784112]
[1772694190633,1.17354363,2130.3,2129.0,0.61784112]
[1772694190792,1.17354363,2130.3,2128.7,1.1744257]
[1772694190793,1.17354363,2130.3,2129.2,0.61784112]
[1772694190996,1.17354363,2130.3,2128.7,1.1744257]
[1772694190997,0.004,2130.2,2129.4,0.61784112]
[1772694191996,0.62245251,2130.1,2129.4,0.61784112]
[1772694192234,0.002,2129.6,2129.4,0.61784112]
[1772694192426,0.002,2130.1,2129.5,0.61784112]
[1772694192728,0.002,2129.8,2129.5,0.61784112]
[1772694193598,0.002,2130.0,2129.5,0.61784112]
[1772694193809,0.004,2129.9,2129.5,0.61784112]
[1772694194010,0.002,2129.9,2129.4,0.13611208]
[1772694194220,0.002,2129.8,2129.4,0.13611208]
[1772694195303,1.17565381,2130.1,2129.4,0.13611208]
[1772694195304,0.002,2130.1,2129.5,0.61784112]
[1772694195502,0.002,2129.9,2129.5,0.61784112]
[1772694195896,0.002,2130.0,2129.5,0.75194643]
[1772694196409,1.409,2131.5,2129.8,0.61784112]
[1772694196410,1.17326825,2130.8,2129.8,0.61784112]
[1772694196610,4.69217376,2131.3,2129.6,1.17392937]
[1772694196611,0.61845251,2131.3,2130.0,0.61784112]
[1772694196807,0.61845251,2131.3,2130.0,0.7458455]
[1772694196808,2.37545251,2131.3,2130.0,0.7458455]
[1772694197499,0.61845251,2131.2,2130.0,0.7458455]
[1772694198611,0.77302829,2131.0,2130.0,0.7458455]
[1772694199624,0.77302829,2130.9,2130.0,0.12800438]
[1772694200120,0.77302829,2130.9,2130.0,0.83644701]
[1772694200524,1.763,2130.8,2130.0,0.83644701]
[1772694201224,1.17326825,2130.8,2130.0,0.83644701]
[1772694201420,1.764,2130.7,2130.0,2.01014795]
[1772694201608,1.764,2130.7,2130.0,0.83644701]
[1772694201806,0.77302829,2131.5,2130.1,0.70844263]
[1772694202006,0.31414446,2131.7,2130.1,0.70844263]
[1772694202205,4.29634357,2132.0,2130.3,0.70844263]
[1772694202206,4.6905934,2132.0,2130.3,0.70844263]
[1772694202405,4.6905934,2132.0,2130.2,0.27017496]
[1772694202406,0.77302829,2131.8,2130.5,0.70844263]
[1772694202606,0.77302829,2131.8,2130.7,0.70844263]
[1772694202827,0.77302829,2131.8,2130.8,0.11333052]
[1772694203028,1.17266288,2131.9,2130.8,0.82177315]
[1772694203232,4.6905934,2132.0,2131.1,0.70844263]
[1772694203435,6.4405934,2132.0,2131.1,0.70844263]
[1772694204222,4.6905934,2132.0,2131.1,0.70844263]
[1772694204425,1.17249788,2132.2,2131.1,0.70844263]
[1772694204876,0.77302829,2132.8,2131.1,0.70844263]
[1772694205152,0.77302829,2132.8,2131.3,0.70844263]
[1772694205329,0.77302829,2132.8,2131.4,1.8813806]
[1772694205330,0.77302829,2132.6,2131.4,1.8813806]
[1772694205530,0.77302829,2132.6,2131.5,0.88181688]
[1772694205740,0.77302829,2132.6,2131.6,0.17336611]
[1772694205923,0.77302829,2132.6,2131.6,0.88180874]
[1772694206124,0.77302829,2132.6,2131.7,0.17335798]
[1772694206328,2.52702829,2132.5,2131.7,0.17335798]
[1772694206525,0.77302829,2132.4,2131.7,0.17335798]
[1772694207051,0.77302829,2132.4,2131.7,0.05029981]
[1772694207370,1.94173503,2132.3,2131.7,0.05029981]
[1772694207734,3.69973503,2132.3,2131.7,0.05029981]
[1772694208057,3.69973503,2132.3,2131.1,1.17306428]
[1772694208058,0.76929213,2132.2,2131.1,1.17306428]
[1772694208261,2.9304429,2132.3,2131.5,0.83402558]
[1772694208461,4.6897716,2132.7,2131.1,1.17306428]
[1772694208462,1.17216838,2132.8,2131.6,0.10739475]
[1772694208666,1.34113575,2132.9,2131.7,0.94290065]
[1772694208973,1.34113575,2132.9,2131.9,0.83402558]
[1772694209254,1.34113575,2132.9,2132.0,0.94288533]
[1772694209424,1.34113575,2132.9,2132.2,0.83402558]
[1772694210353,1.34113575,2132.9,2132.0,2.00659735]
[1772694211085,1.34113575,2132.9,2132.1,0.83402558]
[1772694211491,1.34113575,2132.9,2132.2,1.17249788]
[1772694212090,1.34113575,2132.9,2132.1,0.83402558]
[1772694212270,1.34113575,2132.9,2131.3,1.376536]
[1772694212271,0.76929213,2132.8,2131.7,2.00675644]
[1772694212682,1.34113575,2132.9,2131.9,0.83402558]
[1772694213187,0.76929213,2132.8,2131.9,0.83402558]
[1772694213365,1.172223,2132.7,2131.9,0.83402558]
[1772694213564,1.94151513,2132.7,2131.7,0.83402558]
[1772694213763,1.76,2132.6,2131.7,0.83402558]
[1772694214566,2.935223,2132.7,2131.7,0.83402558]
[1772694214795,1.172223,2132.7,2131.7,0.83402558]
[1772694214963,2.935223,2132.7,2131.7,0.83402558]
[1772694215285,1.172223,2132.7,2131.7,0.83402558]
[1772694215493,2.937223,2132.7,2131.9,0.83402558]
[1772694216191,2.937223,2132.7,2132.0,0.0537403]
[1772694217092,1.172223,2132.7,2132.0,0.0537403]
[1772694217778,0.76929213,2132.6,2132.0,0.0537403]
[1772694217979,0.76929213,2132.4,2132.0,0.0537403]
[1772694218185,0.76929213,2132.4,2131.6,2.048889]
[1772694218976,0.76929213,2132.4,2131.6,0.04204082]
[1772694219176,0.76929213,2132.4,2131.4,0.001]
[1772694219490,1.98627702,2132.5,2131.4,0.001]
[1772694219491,2.54129213,2132.3,2131.4,0.001]
[1772694219683,1.17255288,2132.1,2131.4,0.001]
[1772694219995,0.76929213,2132.0,2131.4,0.001]
[1772694220694,0.76929213,2132.0,2131.1,0.0330357]
[1772694220895,0.76929213,2131.8,2131.1,0.0330357]
[1772694221201,0.76929213,2131.8,2130.7,0.83402558]
[1772694221366,4.63320003,2131.9,2130.4,2.00750035]
[1772694221367,0.76929213,2131.5,2130.4,2.00750035]